Cogmind - Beta 10.1 @@@ ROGUE MODE // 2020.09.30 @ 04:42:44 // Winter2019/RPGLIKE Player: Calanor Result: Destroyed by S-10 Pest with Light Assault Rifle Performance ------------- Evolutions (0) 0 Regions Visited (2) 400 Robots Destroyed (57) 285 Value Destroyed (1025) 1025 Prototype IDs (3) 60 Alien Tech Used (0) 0 Bonus (0) 0 TOTAL SCORE: 1770 Bonus ------- None Cogmind --------- Core Integrity 0/800 Matter 277/300 Energy 310/310 System Corruption 3% Temperature Cool (0) Movement Hovering (80) Location -10/Mines Parts ------- > --- POWER (2) -------- Ion Engine Light Nuclear Core > --- PROPULSION (2) --- Combat Airjet > --- UTILITY (3) ------ Heat Sink Visual Processing Unit Experimental Sensor Array > --- WEAPON (2) ------- Light Cannon Light Cannon > --- INVENTORY (4) ---- Shock Absorption System EM Pulse Gun Mini Grenade Launcher Mining Claw Peak State ------------ > --- POWER ------------ Ion Engine Light Nuclear Core > --- PROPULSION ------- Combat Airjet > --- UTILITY ---------- Heat Sink Visual Processing Unit Experimental Sensor Array > --- WEAPON ----------- Light Cannon Light Cannon > --- INVENTORY -------- Shock Absorption System EM Pulse Gun Mini Grenade Launcher Mining Claw [Rating: 20] Favorites ----------- Power Light Nuclear Core Engine Ion Engine Power Core Light Nuclear Core Propulsion Light Treads Treads Light Treads Wheel Wheel Hover Unit Combat Airjet Utility Visual Processing Unit Device Heat Sink Processor Visual Processing Unit Protection Medium Armor Plating Weapon Light Cannon Energy Gun EM Pulse Gun Ballistic Gun Assault Rifle Ballistic Cannon Light Cannon Slashing Weapon Mining Claw Build | -11 -10 -10 ------- Run | Scr Mat Min Slots Evolved 5 | 3 2 . Power 1 | . 1 . Propulsion 1 | 1 . . Utility 2 | 1 1 . Weapon 1 | 1 . . Parts Attached 26 | 5 16 5 Power 4 | 1 2 1 Engine 3 | 1 1 1 Core 1 | . 1 . Reactor . | . . . Propulsion 7 | 2 3 2 Treads 5 | 2 3 . Leg . | . . . Wheel 1 | . . 1 Hover 1 | . . 1 Flight . | . . . Utility 7 | . 5 2 Device 3 | . 1 2 Storage . | . . . Processor 1 | . 1 . Hackware . | . . . Protection 3 | . 3 . Artifact . | . . . Weapon 8 | 2 6 . Energy Gun 1 | 1 . . Energy Cannon . | . . . Ballistic Gun 1 | 1 . . Ballistic Cannon 4 | . 4 . Launcher . | . . . Special Weapon . | . . . Impact Weapon . | . . . Slashing Weapon 2 | . 2 . Piercing Weapon . | . . . Special Melee Weapon . | . . . Unidentified Prototypes 1 | . . 1 Parts Lost 1 | . . 1 Power . | . . . Propulsion . | . . . Utility 1 | . . 1 Weapon . | . . . Highest Loss Streak 1 | . . 1 Average Slot Usage (%) 95 | . 97 90 Engine 6 | . 4 11 Core 11 | . 11 11 Treads 20 | . 26 8 Hover 2 | . . 6 Device 7 | . 2 18 Processor 11 | . 12 11 Protection 8 | . 11 . Energy Gun 1 | . 2 . Ballistic Gun 1 | . 2 . Ballistic Cannon 21 | . 21 22 Naked Turns . | . . . Heaviest Build 24 | 9 24 24 Greatest Support 40 | 40 40 40 Greatest Overweight (x) . | . . . Average Overweight (x) . | . . . Largest Inventory Capacity 4 | 3 4 4 Average Capacity 3 | 3 3 4 Most Carried 4 | 2 4 4 Average Carried 3 | 1 3 3 Final Capacity 4 | 3 4 4 Final Carried 4 | 2 4 4 Class Distribution -------------------- 52% | Mutant 47% | Scavenger-Mutant Dominant Class ---------------- Mutant | -10/Materials Scavenger-Mutant | -10/Mines Resources | -11 -10 -10 ----------- Run | Scr Mat Min Matter Collected 1625 | 250 731 644 Remotely . | . . . Salvage Created 1153 | . 937 216 Parts 60 | . 57 3 Haulers Intercepted 1 | . 1 . Recyclers Shooed 1 | . 1 . Parts Field Recycled . | . . . Retrieved Matter . | . . . Parts Self-Destructed . | . . . Prevented . | . . . Kills | -11 -10 -10 ------- Run | Scr Mat Min Combat Hostiles Destroyed 43 | . 25 18 Melee 2 | . 2 . Guns 4 | . 4 . Cannons 36 | . 19 17 Classes Destroyed 9 | . 8 1 Worker 2 | . 2 . Builder 1 | . 1 . Hauler 1 | . 1 . Recycler 5 | . 3 2 Operator 2 | . 2 . Watcher 3 | . 3 . Swarmer 4 | . 3 1 Grunt 22 | . 22 . Assembled 17 | . . 17 Best Kill Streak 5 | . 4 5 Combat Bots Only 5 | . 3 5 Max Kills in Single Turn 2 | . 1 2 Gunslinging . | . . . Exploded . | . . . Melee 1 | . 1 . Uniques/NPCs Destroyed . | . . . Combat | -11 -10 -10 -------- Run | Scr Mat Min Damage Taken 2063 | . 1179 884 Core 1569 | . 854 715 Absorbed by Shields . | . . . Redirected to Core 1235 | . 670 565 Core Remaining (%) 100 | 100 . . Volleys Fired 161 | . 90 71 Largest 2 | . 2 2 Hottest 70 | . 70 70 Shots Fired 314 | . 173 141 Gun 36 | . 36 . Cannon 278 | . 137 141 Launcher . | . . . Special . | . . . Kinetic 296 | . 155 141 Thermal . | . . . Explosive . | . . . Electromagnetic 18 | . 18 . Robot Hit Streak 12 | . 12 6 Robot Miss Streak 7 | . 3 7 Penetration Max . | . . . Secondary Targets . | . . . Shots Hit Robots 172 | . 112 60 Core Hits 73 | . 45 28 Critical Hits 4 | . 1 3 Critical Kills 3 | . 1 2 Critical Parts Destroyed 1 | . . 1 Melee Attacks 15 | . 15 . Impact . | . . . Slashing 15 | . 15 . Piercing . | . . . Sneak Attacks 1 | . 1 . Combat Hostiles 1 | . 1 . Follow-up Attacks . | . . . Damage Inflicted 3072 | . 2121 951 Guns 364 | . 364 . Cannons 2438 | . 1487 951 Explosions 152 | . 152 . Melee 115 | . 115 . Ramming 3 | . 3 . Kinetic 2602 | . 1651 951 Thermal 152 | . 152 . Explosive . | . . . Electromagnetic 200 | . 200 . Impact . | . . . Slashing 115 | . 115 . Piercing . | . . . Highest Corruption 3 | . . 3 Average Corruption 3 | . . 3 Corruption Purged . | . . . Effects 21 | . . 21 Message Errors 3 | . . 3 Matter Fused 4 | . . 4 Heat Flow Errors 2 | . . 2 Energy Discharges 1 | . . 1 Data Loss (minor) 3 | . . 3 Targeting Errors 7 | . . 7 Weapon Failures 1 | . . 1 Overload Shots . | . . . Overflow Damage 104 | . 58 46 Projectiles 65 | . 19 46 Explosions 39 | . 39 . Melee . | . . . Knockbacks 32 | . 14 18 Impact . | . . . Kinetic 28 | . 13 15 Secondary 4 | . 1 3 Self-Inflicted Damage . | . . . Shots . | . . . Rammed 1 | . 1 . Targets Rammed 1 | . 1 . Kicked . | . . . Crushed . | . . . Highest Temperature 117 | . 117 101 Average Temperature 49 | . 48 63 Received Heat Transfer 704 | . 504 200 Siege Activations . | . . . Robots Corrupted . | . . . Combat Hostiles . | . . . Parts Fried . | . . . Impact Corruptions 1 | . . 1 Robots Melted . | . . . Combat Hostiles . | . . . Parts Melted . | . . . Heat Transferred 100 | . 100 . Parts Sabotaged . | . . . Parts Stolen . | . . . Parts Stripped . | . . . Power Chain Reactions . | . . . Missiles Intercepted . | . . . Alert | -11 -10 -10 ------- Run | Scr Mat Min Peak Influence 366 | . 366 152 Initial 142 | . . 142 Average 160 | . 208 71 Maximum Alert Level 1 | . 1 . Low Security (%) 68 | 100 52 100 Level 1 31 | . 47 . Level 2 . | . . . Level 3 . | . . . Level 4 . | . . . Level 5 . | . . . High Security . | . . . Max Security . | . . . Squads Dispatched 6 | . 6 . Investigation 4 | . 4 . Extermination . | . . . Reinforcement 2 | . 2 . Assault . | . . . Garrison . | . . . Intercept . | . . . Construction Impeded . | . . . Haulers Reinforced . | . . . Stealth | -11 -10 -10 --------- Run | Scr Mat Min Distress Signals 1 | . 1 . Communications Jammed . | . . . Distress Signals . | . . . Times Spotted 60 | . 33 27 Peak Tracking Total 5 | . 3 5 Tactical Retreats 10 | . 2 8 Traps | -11 -10 -10 ------- Run | Scr Mat Min Traps Triggered 4 | . 4 . Indirectly . | . . . Trap Hack Attempts . | . . . Triggered . | . . . Disarmed . | . . . Reprogrammed . | . . . Reused . | . . . Traps Extracted . | . . . Installed . | . . . Triggered . | . . . Machines | -11 -10 -10 ---------- Run | Scr Mat Min Machines Disabled 4 | . 4 . Max in Single Turn 3 | . 3 . Machines Sabotaged . | . . . Garrisons Compromised . | . . . Overloaded Fab Kills . | . . . Fab Network Shutdowns . | . . . Hacking | -11 -10 -10 --------- Run | Scr Mat Min Machines Accessed 6 | . 6 . Terminals 4 | . 4 . Fabricators . | . . . Repair Stations 1 | . 1 . Recycling Units 1 | . 1 . Scanalyzers . | . . . Garrison Access . | . . . Total Hacks 14 | . 14 . Successful 12 | . 12 . Failed 2 | . 2 . Catastrophic 1 | . 1 . Database Lockouts . | . . . Manual 1 | . 1 . Terminals 9 | . 9 . Fabricators . | . . . Repair Stations 4 | . 4 . Recycling Units 1 | . 1 . Scanalyzers . | . . . Garrison Access . | . . . Terminal Hacks 7 | . 7 . Prototype ID Bank 1 | . 1 . Alert Level 1 | . 1 . Locate Traps 1 | . 1 . Maintenance Status 1 | . 1 . Hauler Manifests 1 | . 1 . Registered Components 1 | . 1 . Zone Layout 1 | . 1 . Fabricator Hacks . | . . . Repair Station Hacks 4 | . 4 . Scan Component 2 | . 2 . Repair 2 | . 2 . Recycling Unit Hacks 1 | . 1 . Report Inventory 1 | . 1 . Scanalyzer . | . . . Garrison Access Hacks . | . . . Unauthorized Hacks . | . . . Terminals . | . . . Fabricators . | . . . Repair Stations . | . . . Recycling Units . | . . . Scanalyzers . | . . . Garrison Access . | . . . Data Cores Recovered . | . . . Used . | . . . Hacking Detections 5 | . 5 . Full Trace Events . | . . . Feedback Events . | . . . Feedback Blocked . | . . . Robot Schematics Acquired . | . . . Robots Built . | . . . Matter . | . . . Time . | . . . Total Robot Build Rating . | . . . Part Schematics Acquired . | . . . Parts Built . | . . . Matter . | . . . Time . | . . . Total Part Build Rating . | . . . Parts Repaired 2 | . 2 . Time 58 | . 58 . Parts Recycled . | . . . Recycled Matter . | . . . Retrieved Matter . | . . . Retrieved Components . | . . . Parts Scanalyzed . | . . . Part Schematics Acquired . | . . . Parts Damaged . | . . . Bothacking | -11 -10 -10 ------------ Run | Scr Mat Min Used RIF Installer . | . . . Robots Hacked . | . . . Non-combat . | . . . Combat . | . . . Robot Hacks Applied . | . . . Relay Couplers Released . | . . . Robots Rewired . | . . . Allies Hacked . | . . . Hacks Repelled . | . . . Allies | -11 -10 -10 -------- Run | Scr Mat Min Total Allies . | . . . Largest Group . | . . . Highest-Rated Group . | . . . Highest-Rated Ally . | . . . Total Orders . | . . . Ally Attacks . | . . . Total Damage . | . . . Kills . | . . . Allies Corrupted . | . . . Allies Melted . | . . . Intel | -11 -10 -10 ------- Run | Scr Mat Min Robot Analysis Total . | . . . Derelict Logs Recovered . | . . . Drone Launches . | . . . Drone Recoveries . | . . . Exploration | -11 -10 -10 ------------- Run | Scr Mat Min Turns Passed 2919 | 85 1934 900 Spaces Moved 1573 | 51 863 659 Core 5 | 5 . . Treads 1040 | 46 863 131 Legs . | . . . Wheels . | . . . Hover 528 | . . 528 Flight . | . . . Fastest Speed 50 | 50 160 80 Average Speed 132 | 149 160 95 Slowest Speed 160 | 160 160 160 Overloaded Moves . | . . . Propulsion Burnouts . | . . . Robots Hopped . | . . . Cave-ins Triggered . | . . . Exploration Rate (%) 61 | 4 99 81 Regions Visited 2 Branch Regions 1 Pre-discovered Areas . | . . . Known Exits Taken . | . . . Unknown Exits Taken 2 | 1 1 . Scrap Searched 1 | . . 1 Spaces Dug 6 | . 6 . Terrain Destroyed 8 | . 8 . Melee 6 | . 6 . Projectile . | . . . AOE 2 | . 2 . Terrain Rammed . | . . . Walls Destroyed . | . . . Machines Disabled . | . . . Actions | -11 -10 -10 --------- Run | Scr Mat Min Total 2055 | 59 1210 786 Wait 215 | . 178 37 Move 1571 | 50 862 659 Hop . | . . . Pick Up 16 | 4 8 4 Fast Attach 10 | 3 4 3 Attach 4 | 2 2 . Detach . | . . . Swap 12 | . 10 2 Drop 13 | . 6 7 Fire 161 | . 90 71 Melee 15 | . 15 . Ram . | . . . Kick . | . . . Crush 1 | . 1 . Escape Stasis . | . . . Rewire . | . . . Trap . | . . . Miscellaneous 37 | . 34 3 Route ------- -11/Scrapyard -10/Materials (discovered 4 exits: [*Mat x3] / [*Min]) -10/Mines (discovered 2 exits: [*Mat x2]) History --------- Turn | Location | Event 1 | -11/Scrapyard | Upgraded with Propulsion slot (x1) 1 | -11/Scrapyard | Upgraded with Utility slot (x1) 1 | -11/Scrapyard | Upgraded with Weapon slot (x1) 6 | -11/Scrapyard | Discovered new exit (range 15) 86 | -11/Scrapyard | Entered Materials 336 | -10/Materials | Build established: Mutant 475 | -10/Materials | Discovered new exit (range 15) 740 | -10/Materials | Reached level 2 768 | -10/Materials | Discovered new exit (range 16) 968 | -10/Materials | Discovered new exit (range 8) 1146 | -10/Materials | Repaired EM Pulse Gun 1179 | -10/Materials | Repaired Med. Armor Plating 1485 | -10/Materials | Discovered new exit (range 16) 1515 | -10/Materials | Reached level 3 1537 | -10/Materials | Upgraded with Power slot (x1) 1537 | -10/Materials | Upgraded with Utility slot (x1) 1836 | -10/Materials | Build established: Scavenger-Mutant 2020 | -10/Materials | Entered Mines 2021 | -10/Mines | Assembled infested the area 2166 | -10/Mines | Discovered new exit (range 16) 2189 | -10/Mines | Core integrity fell below 50% 2363 | -10/Mines | Discovered new exit (range 12) 2381 | -10/Mines | Core integrity fell below 20% 2813 | -10/Mines | Found a damaged Exp. Sensor Array with a note attached 2817 | -10/Mines | Found Prototype Device 2820 | -10/Mines | Identified Exp. Sensor Array 2920 | -10/Mines | Destroyed by S-10 Pest with Light Assault Rifle Last Messages --------------- doesn't do us much good if we can't spot those areas until they're on top of us... With this we can! Deliver it to Megawrench for repairs then we'll never be afraid of an ambush while sneaking around Materials again, ha." 02815_ Dropped Mining Claw. 02817_ Dropped Ion Engine. 02817_ Acquired Prototype Device. 02819_ Acquired Mining Claw. 02820_ Identified Exp. Sensor Array. 02822_ Dropped Shock Absorption System. 02822_ Acquired Shock Absorption System. 02846_ K-01 Serf collects debris. 02885_ System corrupted: Matter fused (-8). 02896_ Searching scrap... 02896_ Found Seismic Analyzer. 02896_ Found Heat Sink. 02896_ Found Lgt. Ion Engine. 02896_ Found 29 Matter. 02897_ Acquired 29 matter. 02917_ S-10 Pest destroyed. Map ----- +----------------------------------------------------+ | | | | | | | | | | | | | | | | | | | | | | | | | | | | | | | | | | | | | | | | | | | ???????????????????????????????????????????? | | ?????????#########?????????????????????????? | | ?????????# """ #######???????????????????? | | ?????????# """! s #???????????????????? | | ?????????# """! @% #???????????????????? | | ?????????# *#### #???????????????????? | | ?????????# #??# #???????????????????? | | ??#??????##### ###??# #???????????????????? | | ?# ####### ##???# #???????????????????? | | ?# #???# #???????????????????? | | ??# #???# #???????? ##??????? | | ??# ###### #???# ### ???? | | ??# ?????????# #???# ? ???? | | ?????????????# #???# #??????? | | ?????????????# #???# ## #??????? | | ????????????## #??? ##??? #??????? | | ???????????## #??# ##???? ? #??????? | | ??????????## #??## ##??? |??????????? | | ??????????# ##???####????? =%??????????? | | ??????????# ##???#####???? !??????????? | | ??????????## ##### ##???? ??????????? | | ???????????## #???? ??????????? | | ????????????## #????# #?????????? | | ?????????????## ##???## ##????????? | | ??????????????## ## ##????# #????????? | | ???????????????# ##### #?????# ##???????? | | ???????????????# #???# ###???# #####???? | | ???????????????# ##### #???# ? % ##??? | | ???????????????# #### #???# #??? | +----------------------------------------------------+ Best States ------------- Heat Dissipation 65 Energy Generation 19 Energy Capacity 310 Matter Stores 300 Matter Capacity 300 Sight Range 18 Robot Scan Range 32 Terrain Scan Density 10 Armor Coverage 225 Resistance: EX 25 Evasion (%) 49 Recoil Reduction 2 Item Schematics ----------------- None Robot Schematics ------------------ None Fabricated ------------ Nothing Alien Tech Used ----------------- None Achievements -------------- Exterminator Challenges ------------ None RPGLIKE | -11 -10 -10 --------- Run | Scr Mat Min Levels Raised 2 | . 2 . XP Earned 7345 | 3000 3695 650 XP Spent 5960 | 3000 2960 . Upgrades 19 | 6 13 . Power Slot 1 | . 1 . Propulsion Slot 1 | 1 . . Utility Slot 2 | 1 1 . Weapon Slot 1 | 1 . . Core Integrity 4 | . 4 . Heat Dissipation 5 | . 5 . Inventory Capacity 4 | 3 1 . Sensor Range 1 | . 1 . Protomatter Created 334 | . 306 28 Integrity Restored 766 | . 706 60 Core 766 | . 706 60 Protomatter Decayed 186 | . 70 116 Game ------ Seed FortressBoreRefractor Manual? 0 Play Time 00:35:48 Cumulative 38.5 hours Start 2020.09.30 @ 04:07:10 End 2020.09.30 @ 04:42:44 Sessions 1 Manual Loads 0 Difficulty Rogue Special Mode Winter2019/RPGLIKE Game No. 36 Rogue 36 Adventurer 0 Explorer 0 Win Type - Total 0 Types 0/0/0/0/0/0/0/0/0 Lore% 21 Gallery% 20 Achievement% 18 Wizard Run 0 Options --------- ASCII 0 Keyboard 0 Movement Numpad Keybinds 0 Fullscreen 1 Font 24/Terminus Map View 76x50 Tactical HUD 1 Map Filters NONE Filters NONE Steam 1 RUN: 499cce09-9c54-4dca-a002-870ea85cdb76